fUSD/lending_fUSD_20241031
["ID","MTS","AMOUNT","RATE_DAILY","PERIOD"]
[341119488,1730405451406,-822.4310246,0.00049299,120]
[341119489,1730405451415,-1676.8,0.00049299,120]
[341119490,1730405451425,-924.0,0.000493,7]
[341119491,1730405451434,-213078.48040388,0.000493,45]
[341119492,1730405451473,-1843.10789762,0.000493,45]
[341119493,1730405451486,-34534.81462064,0.000493,45]
[341119494,1730405451498,-5991.74940002,0.000493,45]
[341119495,1730405451569,-594.08233779,0.000493,45]
[341119496,1730405451585,-422.770281,0.000493,45]
[341119497,1730405451599,-7015.2,0.000493,45]
[341119498,1730405451674,-25222.08367962,0.000493,45]
[341119499,1730405451685,-56159.20000003,0.000493,45]
[341119500,1730405451797,-81.77287161,0.000493,45]
[341119501,1730405451812,-722.091,0.000493,45]
[341119502,1730405451853,-2628.7875,0.000493,45]
[341119503,1730405451863,-2904.15140307,0.000493,45]
[341119505,1730405555943,154.73,0.00015342,2]
[341119507,1730406053515,154.35,0.00015342,2]
[341119509,1730406122509,1153.23036798,0.00044766,30]
[341119510,1730406308312,32165.40049346,0.00016,2]
[341119511,1730406308337,558946.02149682,0.00016,2]
[341119514,1730406429134,-6495.24422414,0.00021,2]
[341119515,1730406429155,-425.713,0.00031476,2]
[341119516,1730406429175,-1482.05787541,0.0003888,90]
[341119517,1730406429194,-425.713,0.00039291,2]
[341119518,1730406429215,-531.5065,0.00039888,7]
[341119519,1730406429234,-552.469978,0.0004179,2]
[341119520,1730406429255,-266.03249732,0.0004179,2]
[341119521,1730406435100,-405.20872271,0.0004179,2]
[341119522,1730406451139,-900.0,0.00041999,4]
[341119523,1730406451161,-3116.46508051,0.00042,2]
[341119524,1730406451183,-441.02,0.0004279,10]
[341119525,1730406451204,-769.92,0.0004279,10]
[341119526,1730406451226,-641.6,0.0004279,10]
[341119527,1730406451246,-534.67,0.0004279,10]
[341119528,1730406451268,-500.0,0.00042799,31]
[341119529,1730406451288,-147674.0382815,0.000428,60]
[341119530,1730406451307,-38544.92826434,0.00043,10]
[341119531,1730406452089,-2504.34470329,0.00043,10]
[341119532,1730406487521,10000.0,0.00015,2]
[341119533,1730406487545,10000.0,0.00015,2]
[341119534,1730406487569,10000.0,0.00015,2]
[341119535,1730406487597,10000.0,0.00015,2]
[341119536,1730406487620,10000.0,0.00015,2]
[341119537,1730406487642,391823.02082174,0.00015,2]
[341119538,1730406509756,150.0,0.0002,2]
[341119539,1730406509777,150.0,0.0002,2]
[341119540,1730406509797,150.0,0.0002,2]
[341119541,1730406509819,150.0,0.0002,2]
[341119542,1730406509840,150.0,0.0002,2]
[341119543,1730406509861,150.0,0.0002,2]
[341119544,1730406509884,150.0,0.0002,2]
[341119545,1730406509906,150.0,0.0002,2]
[341119546,1730406509927,150.0,0.0002,2]
[341119547,1730406509951,150.0,0.0002,2]
[341119548,1730406509971,150.0,0.0002,2]
[341119549,1730406509992,150.0,0.0002,2]
[341119550,1730406510014,150.0,0.0002,2]
[341119551,1730406510036,150.0,0.0002,2]
[341119552,1730406510057,150.0,0.0002,2]
[341119553,1730406510078,295.04784126,0.0002,2]
[341119554,1730406510101,8495.90329433,0.0002,2]
[341119559,1730406515285,552.07744412,0.00015235,2]
[341119564,1730406530133,150.0,0.00013,2]
[341119568,1730406549084,-1263.6978758,0.00023922,2]
[341119569,1730406549106,-905.99999989,0.00025,7]
[341119570,1730406549127,-994.64,0.0003,2]
[341119571,1730406549149,-2121.65156085,0.0003,2]
[341119572,1730406549169,-1246.9186986,0.00035,2]
[341119573,1730406549190,-3938.57708486,0.00035,2]
[341119574,1730406549218,-12000.47961205,0.00035,2]
[341119575,1730406549241,-28469.24072795,0.00042,30]
[341119576,1730406556113,-24426.03762792,0.00042,30]
[341119579,1730406564103,-7020.47711405,0.00042,30]
[341119580,1730406564123,-2328.73486093,0.000429,7]
[341119581,1730406564143,-190.86637253,0.000429,60]
[341119582,1730406564162,-20092.39786367,0.00043,10]
[341119583,1730406564181,-2010.0,0.00043836,30]
[341119584,1730406564201,-837.76,0.00043836,2]
[341119585,1730406564221,-250.0,0.00043961,120]
[341119586,1730406564241,-525.23257198,0.00044165,5]
[341119587,1730406564260,-481.0,0.00044167,2]
[341119588,1730406567143,-3282.13292478,0.00044756,2]
[341119589,1730406569102,-850.53707522,0.00044756,2]
[341119590,1730406569122,-611.9,0.00044756,30]
[341119591,1730406569140,-2472.26,0.00044756,2]
[341119592,1730406569158,-150.99,0.00044756,2]
[341119593,1730406569177,-445.56,0.00044756,10]
[341119594,1730406569198,-371.3,0.00044756,10]
[341119595,1730406569217,-187.53,0.00044756,30]
[341119596,1730406569237,-187.53,0.00044756,30]
[341119597,1730406569256,-187.53,0.00044756,30]
[341119598,1730406569276,-187.53,0.00044756,30]
[341119599,1730406569294,-187.53,0.00044756,30]
[341119600,1730406569315,-187.53,0.00044756,30]
[341119601,1730406569333,-187.53,0.00044756,30]
[341119602,1730406569352,-350.8587452,0.00044756,2]
[341119603,1730406569373,-103513.85417958,0.00044766,20]
[341119613,1730406631732,-13337.14582042,0.00044766,20]
[341119615,1730406631742,-250.0,0.00044795,120]
[341119616,1730406631752,-201.0,0.00045,2]
[341119617,1730406631762,-427.95,0.00045155,2]
[341119618,1730406631772,-4649.31,0.0004529,2]
[341119619,1730406631781,-151.3324187,0.00045577,6]
[341119620,1730406631791,-618.31,0.00045577,2]
[341119621,1730406631801,-499.99,0.00045577,2]
[341119622,1730406631810,-272.918,0.00045577,74]
[341119623,1730406631820,-207.09,0.00045755,2]
[341119624,1730406631831,-250.0,0.000458,2]
[341119625,1730406631843,-200.0,0.00045879,2]
[341119626,1730406631853,-427.95,0.00045881,2]
[341119627,1730406631863,-200.0,0.0004592,2]
[341119628,1730406631872,-520.0,0.00045984,2]
[341119629,1730406631883,-222.94,0.00045984,2]
[341119630,1730406631894,-250.0,0.00046259,2]
[341119631,1730406631903,-481.0,0.00046431,2]
[341119632,1730406631912,-427.95,0.00046607,2]
[341119633,1730406631922,-355.80978452,0.0004676,15]
[341119634,1730406631931,-150.23,0.0004686,2]
[341119635,1730406631941,-152.0,0.00046988,3]
[341119636,1730406631951,-210.96,0.00047034,120]
[341119637,1730406631960,-1405.38,0.00047035,2]
[341119638,1730406631971,-615.68103165,0.0004705,8]
[341119639,1730406631981,-10675.80260116,0.00047051,2]
[341119640,1730406632005,-2493.99,0.00047051,2]
[341119641,1730406632016,-9071.93989042,0.00047051,2]
[341119642,1730406632030,-1658.26750842,0.00047051,2]
[341119643,1730406632039,-208.62201994,0.00047107,14]
[341119680,1730406637713,-200.0,0.00046607,2]
[341119681,1730406637724,-971.37158989,0.0004697,2]
[341119686,1730406638400,-150.0,0.00046607,2]
[341119687,1730406638410,-10836.58607163,0.0004697,2]
[341119688,1730406638421,-702.20206707,0.0004697,2]
[341119689,1730406638436,-200.0,0.0004676,15]
[341119690,1730406638446,-202.26533069,0.0004697,2]
[341119691,1730406638460,-505.30548747,0.0004697,2]
[341119692,1730406638471,-24.62945325,0.0004697,2]
[341119693,1730406638481,-217.09098006,0.00047107,14]
[341119694,1730406638490,-345.88,0.00047138,2]
[341119695,1730406638499,-480.0,0.00047171,2]
[341119696,1730406638508,-427.95,0.00047332,2]
[341119697,1730406638517,-168.74,0.00047423,2]
[341119698,1730406638527,-192.91,0.00047443,2]
[341119699,1730406638537,-143.77110668,0.00047448,2]
[341119700,1730406638687,-24.96889332,0.00047448,2]
[341119701,1730406638696,-168.74,0.00047473,2]
[341119702,1730406638705,-136.41219655,0.00047498,2]
[341119703,1730406638717,-32.32780345,0.00047498,2]
[341119704,1730406638726,-168.74,0.00047523,2]
[341119705,1730406638735,-168.74,0.00047548,2]
[341119706,1730406638744,-168.74,0.00047573,2]
[341119707,1730406638753,-168.74,0.00047598,2]
[341119708,1730406638762,-168.74,0.00047623,2]
[341119709,1730406638771,-168.74,0.00047648,2]
[341119710,1730406638783,-168.74,0.00047673,2]
[341119711,1730406638792,-168.74,0.00047698,2]
[341119712,1730406638801,-168.74,0.00047723,2]
[341119713,1730406638810,-168.74,0.00047748,2]
[341119714,1730406638819,-168.74,0.00047773,2]
[341119715,1730406638828,-168.74,0.00047798,2]
[341119716,1730406638838,-168.74,0.00047823,2]
[341119717,1730406638847,-168.74,0.00047848,2]
[341119718,1730406638856,-168.74,0.00047873,2]
[341119719,1730406638865,-168.74,0.00047898,2]
[341119720,1730406638874,-207.09,0.00048043,2]
[341119721,1730406638883,-5207.4083,0.00048055,20]
[341119722,1730406638893,-427.95,0.00048058,2]
[341119723,1730406638902,-159.98,0.00048061,120]
[341119724,1730406638911,-420.7836102,0.00048085,2]
[341119725,1730406638921,-597.94481,0.00048088,30]
[341119726,1730406638930,-355.80978443,0.00048169,15]
[341119727,1730406638939,-597.94481,0.00048288,30]
[341119728,1730406638949,-3430.64055466,0.000483,7]
[341119729,1730406638958,-151.0,0.00048319,14]
[341119730,1730406638967,-151.0,0.00048319,14]
[341119731,1730406638976,-214.062179,0.00048319,14]
[341119732,1730406638985,-151.0,0.00048319,14]
[341119733,1730406638995,-151.0,0.00048319,14]
[341119734,1730406639004,-420.7836102,0.00048415,2]
[341119735,1730406639013,-215.6783,0.00048424,2]
[341119736,1730406639022,-381.6394,0.00048434,2]
[341119737,1730406639032,-597.94481,0.00048488,30]
[341119738,1730406639041,-160.57,0.00048505,2]
[341119739,1730406639050,-420.7836102,0.0004854,2]
[341119740,1730406639060,-300.0,0.000486,17]
[341119741,1730406639069,-597.94481,0.00048688,30]
[341119742,1730406639078,-481.0,0.00048694,2]
[341119743,1730406639087,-700.0,0.000487,17]
[341119744,1730406639097,-427.95,0.00048783,2]
[341119745,1730406639106,-1000.0,0.000488,17]
[341119746,1730406639115,-8470.18385654,0.0004881,2]
[341119747,1730406639124,-1400.0,0.000489,17]
[341119748,1730406639134,-420.7836103,0.00048958,2]
[341119749,1730406639143,-597.94481,0.00049088,30]
[341119750,1730406639153,-1923.6362,0.000492,2]
[341119751,1730406639162,-191.90275021,0.000492,25]
[341119752,1730406639171,-517.9218,0.000492,2]
[341119753,1730406639180,-184.89882248,0.000492,25]
[341119754,1730406639189,-1000.0,0.000492,2]
[341119755,1730406639199,-1760.0994,0.000492,2]
[341119756,1730406639208,-174.24113218,0.000492,35]
[341119757,1730406639218,-6776.3261,0.000492,2]
[341119758,1730406639227,-314.94290688,0.000492,2]
[341119759,1730406639236,-162.58870397,0.000492,28]
[341119760,1730406639245,-210.52989972,0.000492,21]
[341119761,1730406639254,-3119.17411722,0.000492,2]
[341119762,1730406639263,-837.84609485,0.000492,2]
[341119763,1730406639280,-200.21767485,0.000492,2]
[341119764,1730406639289,-161.64941362,0.00049273,10]
[341119765,1730406639298,-143.44845089,0.00049273,10]
[341119766,1730406639468,-362.27016391,0.00049273,10]
[341119767,1730406639477,-214.87,0.00049278,10]
[341119769,1730406639487,-597.94481,0.00049288,30]
[341119770,1730406639496,-273.6,0.00049289,10]
[341119772,1730406639506,-228.0,0.00049289,10]
[341119774,1730406639517,-153.65,0.0004929,2]
[341119776,1730406639526,-190.0,0.0004929,10]
[341119778,1730406639539,-300.0,0.00049299,10]
[341119779,1730406639549,-1000.0,0.00049299,120]
[341119780,1730406639558,-500.0,0.00049299,2]
[341119781,1730406639568,-328.40031386,0.00049299,120]
[341119782,1730406639577,-1662.77,0.00049299,120]
[341119783,1730406639587,-75140.32237296,0.000493,45]
[341119784,1730406639599,-18918.91974328,0.000493,45]
[341119786,1730406640873,-2538.50248492,0.000493,45]
[341119787,1730406640885,-580.62479608,0.000493,45]
[341119788,1730406640984,-10710.29,0.000493,45]
[341119789,1730406641043,-200.0,0.00047051,2]
[341119790,1730406641053,-151.185,0.000493,45]
[341119791,1730406641264,-350.838488,0.000493,45]
[341119801,1730406642914,-200.0,0.00047332,2]
[341119802,1730406642925,-5505.827615,0.000493,45]
[341119803,1730406642937,-11758.7886,0.000493,45]
[341119804,1730406643135,-8530.016,0.000493,45]
[341119805,1730406643146,-24832.3849998,0.000493,45]
[341119806,1730406643158,-17019.8206032,0.000493,45]
[341119916,1730406645778,-200.0,0.00047498,2]
[341119917,1730406645789,-3303.5,0.000492,2]
[341119918,1730406645801,-10790.49810516,0.000492,2]
[341119919,1730406645811,-88304.12750469,0.000493,45]
[341119920,1730406645822,-1403.0,0.000493,45]
[341119921,1730406645838,-267.734688,0.000493,45]
[341119922,1730406646037,-280.6,0.000493,45]
[341119923,1730406646050,-254249.99999996,0.000493,45]
[341119924,1730406646074,-688610.1869414,0.000493,45]
[341119925,1730406646345,-15019.16861344,0.000493,45]
[341120168,1730406751097,150.0,0.00017605,2]
[341120169,1730406902366,300.0,0.00019725,2]
[341120170,1730407021219,300.0,0.00019725,2]
[341120172,1730407082413,300.0,0.00019725,2]
[341120173,1730407082793,157.14,0.00015342,2]
[341120175,1730407090892,236.09,0.00019178,2]
[341120176,1730407201232,300.0,0.00019725,2]
[341120177,1730407219108,550.0,0.00015,2]
[341120178,1730407321541,300.0,0.00019725,2]
[341120180,1730407381889,300.0,0.00019725,2]
[341120183,1730407441188,300.0,0.00019725,2]
[341120185,1730407451683,700.83395486,0.00019,3]
[341120187,1730407464102,700.83395486,0.0002,3]
[341120188,1730407502491,300.0,0.00019725,2]
[341120189,1730407549136,-214.0,0.00021484,2]
[341120190,1730407549157,-157.14,0.00026401,2]
[341120191,1730407549178,-353.908259,0.000297,2]
[341120192,1730407549198,-151.0,0.0003,120]
[341120193,1730407549219,-299.99,0.0003,12]
[341120194,1730407549240,-885.70093315,0.0003,2]
[341120195,1730407549260,-478.07,0.0003,2]
[341120196,1730407549281,-700.83395486,0.0003,3]
[341120197,1730407549302,-965.75625,0.0003045,2]
[341120198,1730407549322,-235.59,0.0003045,2]
[341120199,1730407549342,-721.01,0.0003045,2]
[341120200,1730407549364,-1249.35,0.0003045,2]
[341120201,1730407549385,-344.69,0.0003045,2]
[341120202,1730407549406,-280.50325,0.00031833,2]
[341120203,1730407549427,-157.14,0.0003746,2]
[341120204,1730407549448,-965.75625,0.00038484,2]
[341120205,1730407549471,-280.50325,0.00039573,2]
[341120206,1730407549491,-392.0074,0.00039888,7]
[341120207,1730407549511,-603.78,0.00039888,2]
[341120208,1730407549531,-3799.442914,0.00041118,120]
[341120209,1730407549553,-150.0,0.00041475,2]
[341120210,1730407549572,-1320.66,0.00041601,2]
[341120211,1730407549593,-573.42,0.00041694,2]
[341120212,1730407549614,-150.0,0.00041716,2]
[341120213,1730407549634,-150.0,0.00041795,2]
[341120214,1730407549654,-1168.0,0.00041847,4]
[341120215,1730407549675,-3264.20915801,0.00041848,2]
[341120217,1730407625095,-1505.91808906,0.00041333,2]
[341120219,1730407638088,-150.0,0.00041316,2]
[341120220,1730407638109,-580.1467982,0.00041333,2]
[341120221,1730407654101,-150.0,0.00041416,2]
[341120222,1730407654122,-232.263,0.00041848,62]
[341120223,1730407654242,-151.0,0.00042,120]
[341120224,1730407654263,-2261.71181615,0.00042,2]
[341120227,1730407745103,-161.40047833,0.00032877,2]
[341120228,1730407746183,-188.8318895,0.00036822,2]
[341120230,1730407748126,-17764.16404,0.00041362,2]
[341120231,1730407750089,-1885.56596,0.00041362,2]
[341120232,1730407750111,-500.0,0.0004285,2]
[341120233,1730407750131,-532.75,0.00042901,2]
[341120234,1730407750151,-32.52919593,0.00042946,2]
[341120236,1730407760115,-383.47080407,0.00042946,2]
[341120237,1730407760135,-250.0,0.00042946,120]
[341120238,1730407760155,-200.0,0.00042964,2]
[341120239,1730407760177,-692.05,0.00043,2]
[341120240,1730407760199,-809.25,0.00043302,120]
[341120241,1730407760219,-2250.99,0.00043349,2]
[341120242,1730407760238,-350.24,0.00043358,2]
[341120243,1730407760261,-150.29,0.00043421,2]
[341120244,1730407760282,-891.26,0.00043475,120]
[341120245,1730407760302,-500.0,0.00043575,2]
[341120246,1730407760322,-532.75,0.0004359,2]
[341120247,1730407760341,-157.77,0.00043612,2]
[341120248,1730407760366,-159.98,0.00043797,120]
[341120249,1730407760391,-168.66,0.00043847,2]
[341120250,1730407760413,-161.91,0.000439,36]
[341120251,1730407760434,-161.37,0.00043941,120]
[341120252,1730407760454,-573.42,0.00043958,2]
[341120253,1730407760474,-250.0,0.00044114,2]
[341120254,1730407760495,-300.0,0.00044142,2]
[341120255,1730407760515,-150.0,0.00044197,2]
[341120256,1730407760534,-7075.63100181,0.00044244,2]
[341120257,1730407760554,-532.75,0.0004428,2]
[341120258,1730407760574,-155.08,0.00044424,2]
[341120259,1730407760594,-155.08,0.00044448,2]
[341120260,1730407760618,-155.08,0.00044471,2]
[341120261,1730407760638,-155.08,0.00044494,2]
[341120262,1730407760657,-155.08,0.00044518,2]
[341120263,1730407760677,-155.08,0.00044541,2]
[341120264,1730407760698,-155.08,0.00044565,2]
[341120265,1730407760718,-155.08,0.00044588,2]
[341120266,1730407760738,-155.08,0.00044611,2]
[341120267,1730407760757,-155.08,0.00044635,2]
[341120268,1730407760782,-367.43,0.00044637,2]
[341120269,1730407772085,-155.08,0.00044658,2]
[341120270,1730407772106,-155.08,0.00044681,2]
[341120271,1730407772127,-155.08,0.00044705,2]
[341120272,1730407772146,-250.0,0.00044713,120]
[341120273,1730407772165,-94.1547204,0.00044728,2]
[341120275,1730407779526,181.16,0.00044279,120]
[341120276,1730407786447,150.0,0.00041539,2]
[341120277,1730407797953,1518.47,0.0002,2]
[341120293,1730407831944,-60.9252796,0.00044728,2]
[341120294,1730407831958,-155.08,0.00044751,2]
[341120295,1730407831968,-150.0,0.00044752,2]
[341120296,1730407831979,-155.08,0.00044775,2]
[341120297,1730407831989,-1111.12,0.00044776,2]
[341120298,1730407831998,-155.08,0.00044798,2]
[341120299,1730407832008,-155.08,0.00044822,2]
[341120300,1730407832017,-155.08,0.00044845,2]
[341120301,1730407832027,-155.08,0.00044868,2]
[341120302,1730407832036,-3964.28514739,0.00044957,2]
[341120303,1730407832047,-705.82362801,0.00044957,2]
[341120304,1730407832059,-749.90013726,0.00044957,2]
[341120305,1730407832074,-471.55435349,0.00044957,2]
[341120306,1730407832085,-917.61691343,0.00044957,2]
[341120307,1730407832120,-413.26717998,0.00044957,2]
[341120308,1730407832132,-16677.55264044,0.00044957,2]
[341120309,1730407832141,-321.21,0.00044957,2]
[341120310,1730407832150,-532.75,0.00044969,2]
[341120311,1730407832168,-1000.0,0.00045147,2]
[341120312,1730407832177,-584.0,0.00045164,2]
[341120313,1730407832186,-187.59,0.00045595,120]
[341120314,1730407832196,-532.75,0.00045658,2]
[341120315,1730407832206,-150.0,0.000457,120]
[341120316,1730407832215,-181.16,0.00046027,120]
[341120317,1730407832225,-228.7,0.00046119,2]
[341120318,1730407832234,-573.42,0.00046222,2]
[341120319,1730407832244,-532.75,0.00046348,2]
[341120320,1730407832253,-965.75625,0.00046517,14]
[341120321,1730407832263,-367.43,0.00046869,2]
[341120322,1730407832272,-532.75,0.00047037,2]
[341120323,1730407832285,-280.50325,0.00047313,14]
[341120324,1730407832295,-8729.0,0.00047357,30]
[341120326,1730407832305,-161.91,0.000476,42]
[341120328,1730407832315,-161.91,0.000476,42]
[341120329,1730407832324,-532.75,0.00047726,2]
[341120331,1730407832334,-181.16,0.00047775,120]
[341120333,1730407832343,-441.00838,0.00048088,30]
[341120335,1730407832352,-441.00838,0.00048288,30]
[341120337,1730407832361,-416.0,0.00048315,2]
[341120339,1730407832371,-573.42,0.00048486,2]
[341120340,1730407832380,-441.00838,0.00048488,30]
[341120341,1730407832391,-150.0,0.00048493,2]
[341120343,1730407832399,-150.0,0.00048493,2]
[341120345,1730407832412,-150.0,0.00048493,2]
[341120346,1730407832421,-157.14,0.00048518,2]
[341120348,1730407832430,-441.00838,0.00048688,30]
[341120349,1730407832439,-1215.0,0.00048745,2]
[341120350,1730407832449,-8254.6673264,0.0004881,2]
[341120351,1730407832458,-166.96,0.0004897,2]
[341120352,1730407832467,-150.110105,0.00048998,120]
[341120353,1730407832477,-441.00838,0.00049088,30]
[341120354,1730407832486,-150.110105,0.00049098,120]
[341120355,1730407832495,-880.2995,0.000491,2]
[341120356,1730407832504,-14011.3954,0.000491,2]
[341120357,1730407832513,-2621.67829172,0.000491,2]
[341120358,1730407832622,-1235.57010828,0.000491,2]
[341120359,1730407832633,-1128.26297829,0.000491,2]
[341120360,1730407832644,-489.08218781,0.000491,2]
[341120361,1730407832658,-1100.52704931,0.000491,2]
[341120362,1730407832706,-66.99384968,0.000491,2]
[341120369,1730407838090,-5228.65636,0.000491,2]
[341120370,1730407838168,-2102.1,0.000491,2]
[341120371,1730407838225,-4509.49867491,0.000491,2]
[341120372,1730407838236,-2500.0,0.000491,2]
[341120373,1730407838246,-367.43,0.000491,2]
[341120374,1730407838256,-543.49444852,0.00049173,5]
[341120375,1730407838267,-690.03,0.00049189,10]
[341120376,1730407838277,-575.03,0.00049189,10]
[341120377,1730407838288,-479.19,0.00049189,10]
[341120378,1730407838301,-150.110105,0.00049198,120]
[341120379,1730407838312,-7500.0,0.00049199,120]
[341120380,1730407838321,-6499.9644348,0.000492,2]
[341120381,1730407838335,-1080.357,0.000492,2]
[341120494,1730407839852,-200.0,0.000476,42]
[341120497,1730407839864,-240.3169222,0.00048988,2]
[341120499,1730407839876,-697.95,0.00048988,2]
[341120503,1730407839912,-467.6265778,0.00048988,2]
[341120505,1730407839925,-112.99821828,0.0004919,10]
[341120508,1730407839937,-286.32178172,0.0004919,10]
[341120509,1730407839946,-175.20689597,0.000492,2]
[341120612,1730407840936,-200.0,0.00047775,120]
[341120614,1730407840946,-57.15812335,0.000492,2]
[341120616,1730407840958,-365.86289725,0.000492,2]
[341120618,1730407840969,-6999.5,0.000492,2]
[341120643,1730407841455,-7007.90000001,0.000492,2]
[341120644,1730407841467,-15566.11174862,0.000492,2]
[341120645,1730407841477,-19379.38825138,0.000492,2]
[341120646,1730407841560,-12062.81432059,0.000492,2]
[341120647,1730407841577,-299.59676524,0.000492,2]
[341120648,1730407841593,-5015.19999995,0.000492,2]
[341120649,1730407841605,-1472.22206284,0.000492,2]
[341120650,1730407841616,-5731.37793716,0.000492,2]
[341120651,1730407841627,-18002.44312348,0.000492,2]
[341120652,1730407841639,-430.64,0.000492,2]
[341120653,1730407841957,250.52673223,0.000411,2]
[341120660,1730407842908,-553.06915024,0.000492,2]
[341120661,1730407842931,-315.71807866,0.000492,2]
[341120662,1730407842948,-724.339208,0.000492,2]
[341120663,1730407843076,-200.0,0.00048488,30]
[341120664,1730407843089,-1548.25,0.000492,2]
[341120665,1730407843105,-758.03430322,0.000492,2]
[341120685,1730407843428,-2223.60684664,0.000492,2]
[341120687,1730407843443,-2105.37,0.000492,2]
[341120690,1730407843465,-1418.88304883,0.000492,2]
[341120695,1730407845961,-250.0,0.00048352,120]
[341120696,1730407845972,-308.4,0.000492,2]
[341120697,1730407845984,-3263.62190377,0.000492,2]
[341120698,1730407845996,-817.811,0.000492,2]
[341120699,1730407846006,-4283.4986,0.000492,2]
[341120700,1730407846017,-404.2718,0.000492,2]
[341120701,1730407846026,-191.9027502,0.000492,25]
[341120702,1730407846036,-184.89882247,0.000492,25]
[341120703,1730407846046,-4453.52305114,0.000492,30]
[341120704,1730407846056,-174.24113218,0.000492,35]
[341120705,1730407846065,-210.52989964,0.000492,21]
[341120706,1730407846075,-162.58870391,0.000492,28]
[341120707,1730407846086,-516.16633456,0.000492,2]
[341120708,1730407846095,-2140.32547472,0.0004922,7]
[341120709,1730407846105,-502.19950538,0.00049273,10]
[341120710,1730407846114,-174.42102203,0.00049273,10]
[341120711,1730407846126,-202.27415924,0.00049273,10]
[341120712,1730407846136,-153.65,0.0004929,2]
[341120713,1730407846146,-150.110105,0.00049298,120]
[341120714,1730407846156,-300.0,0.00049299,10]
[341120715,1730407846166,-500.0,0.00049299,2]
[341120716,1730407846176,-92.54573576,0.00049299,120]
[341120717,1730407846202,-200.0,0.00048998,120]
[341120718,1730407846212,-907.45426424,0.00049299,120]
[341120719,1730407846222,-1943.16,0.00049299,120]
[341120720,1730407846232,-799.69516243,0.00049299,120]
[341120721,1730407846242,-52016.04475432,0.000493,45]
[341120724,1730407846306,-310.55275737,0.000493,45]
[341120726,1730407846321,-36200.00000005,0.000493,45]
[341120735,1730407846390,-635.96731855,0.000493,45]
[341120737,1730407846401,-130529.44870866,0.000493,45]
[341120770,1730407846718,150.0,0.00041358,2]
[341120997,1730407849055,332.986,0.0003,2]
[341120998,1730407849274,332.986,0.00037944,2]
[341120999,1730407869376,550.26933381,0.00043,2]
[341121000,1730407884378,5828.334385,0.000446,2]
[341121001,1730407905136,150.0,0.00041034,2]
[341121002,1730407942189,2558.42,0.00043,2]
[341121003,1730407946907,743.00475,0.0003,2]
[341121004,1730407947213,743.00475,0.00036954,2]
[341121005,1730407948817,175.089,0.00028507,2]
[341121006,1730407948842,150.0,0.00017605,2]
[341121007,1730407990408,150.0,0.00017605,2]
[341121008,1730408032001,150.0,0.00017605,2]
[341121009,1730408073534,150.0,0.00017605,2]
[341121011,1730408115016,150.0,0.00017605,2]
[341121013,1730408587898,154.73,0.00015342,2]
[341121014,1730408742108,-250.0,0.000287,2]
[341121015,1730408742128,-152.7065,0.0003,2]
[341121016,1730408742148,-253.8345,0.0003,2]
[341121017,1730408742168,-98.50037111,0.00036608,2]
[341121018,1730408832192,-155.33412889,0.00036608,2]
[341121019,1730408832213,-152.7065,0.0003727,2]
[341121020,1730408832234,-386.4132,0.00039888,7]